bitfinex/quotes_SOLUSD_20250719
["timestamp","ask_amount","ask_price","bid_price","bid_amount"]
[1752933532472,0.06,177.35,177.34,46.37383948]
[1752933532669,0.06,177.35,177.34,86.11383948]
[1752933533051,0.06,177.35,177.34,86.83383948]
[1752933534276,0.06,177.38,177.37,42.78468397]
[1752933534453,0.06,177.38,177.37,93.23383948]
[1752933534648,0.06,177.38,177.37,90.36468397]
[1752933534849,0.06,177.38,177.37,93.95383948]
[1752933535178,0.06,177.38,177.37,93.23383948]
[1752933536270,0.06,177.38,177.37,93.95383948]
[1752933538283,0.06,177.38,177.37,93.23383948]
[1752933540265,0.78,177.38,177.37,49.88468397]
[1752933540569,0.78,177.38,177.37,56.52468397]
[1752933540884,0.78,177.38,177.37,16.78468397]
[1752933541077,0.06,177.38,177.37,20.37383948]
[1752933541459,0.06,177.38,177.37,60.13383948]
[1752933542079,0.78,177.38,177.37,16.78468397]
[1752933542289,6.41761416,177.38,177.37,16.78468397]
[1752933542581,0.06,177.38,177.37,21.09383948]
[1752933543367,0.06,177.38,177.37,62.59763268]
[1752933544669,0.06,177.38,177.37,66.18678819]
[1752933546777,0.06,177.38,177.37,62.59763268]
[1752933547987,0.06,177.38,177.37,66.18678819]
[1752933548683,0.06,177.39,177.38,16.78468397]
[1752933548985,0.06,177.39,177.38,78.0083828]
[1752933550265,0.06,177.39,177.38,78.57214421]
[1752933551385,0.06,177.39,177.38,68.57760089]
[1752933551773,0.06,177.39,177.38,28.03760089]
[1752933551993,0.06,177.39,177.38,67.85760089]
[1752933552193,0.06,177.39,177.38,67.29383948]
[1752933552505,0.78,177.39,177.38,93.29383948]
[1752933553591,6.41729635,177.39,177.38,89.70468397]
[1752933553892,6.41729635,177.39,177.38,93.29383948]
[1752933554767,6.41729635,177.39,177.38,86.19383948]
[1752933555170,6.41729635,177.39,177.38,82.60468397]
[1752933555391,6.41729635,177.39,177.38,86.19383948]
[1752933556098,6.41729635,177.39,177.38,16.78468397]
[1752933556875,10.00645186,177.39,177.37,16.78468397]
[1752933557072,9.94676967,177.38,177.37,16.78468397]
[1752933557300,9.94676967,177.38,177.35,16.78468397]
[1752933557499,9.22676967,177.38,177.35,16.78468397]
[1752933557792,0.72,177.37,177.36,26.0]
[1752933557993,0.72,177.37,177.36,42.78468397]
[1752933559386,6.357932,177.37,177.36,42.78468397]
[1752933559890,5.637932,177.37,177.36,42.78468397]
[1752933561776,5.63761416,177.38,177.36,46.37383948]
[1752933562801,5.63761416,177.38,177.36,42.78468397]
[1752933563091,6.41731513,177.39,177.36,47.06383948]
[1752933563797,0.06,177.39,177.38,20.37383948]
[1752933564505,0.06,177.39,177.38,16.78468397]
[1752933565701,0.76,177.39,177.38,16.78468397]
[1752933565882,0.76,177.39,177.37,16.78468397]
[1752933566087,0.06,177.39,177.38,42.78468397]
[1752933566682,6.39729635,177.39,177.38,42.78468397]
[1752933566883,0.06,177.39,177.38,46.37383948]
[1752933567188,0.06,177.39,177.38,47.06383948]
[1752933567678,0.06,177.39,177.38,86.78383948]
[1752933568576,0.06,177.39,177.38,127.72383948]
[1752933568984,0.06,177.39,177.38,131.31299499]
[1752933569188,0.06,177.39,177.38,127.72383948]
[1752933569909,0.06,177.39,177.38,93.88383948]
[1752933570096,0.06,177.39,177.38,93.19383948]
[1752933570297,0.06,177.39,177.38,49.88468397]
[1752933570503,0.76,177.39,177.38,89.62468397]
[1752933571217,6.39729635,177.39,177.38,89.62468397]
[1752933571397,6.39729635,177.39,177.38,23.88468397]
[1752933572609,6.39729635,177.39,177.38,16.78468397]
[1752933574994,0.06,177.39,177.38,16.78468397]
[1752933576711,6.39729635,177.39,177.38,16.78468397]
[1752933580608,9.98645186,177.39,177.38,16.78468397]
[1752933582197,9.98645186,177.39,177.37,0.03]
[1752933582397,4.28915551,177.38,177.37,0.03]
[1752933582607,0.7,177.38,177.37,0.03]
[1752933582917,4.28915551,177.38,177.37,0.03]
[1752933583708,9.92676967,177.38,177.37,0.03]
[1752933586512,75.92676967,177.38,177.37,0.03]
[1752933587225,72.33761416,177.38,177.37,0.03]
[1752933587386,71.63761416,177.38,177.37,0.03]
[1752933587805,72.33761416,177.38,177.37,0.03]
[1752933588208,75.92676967,177.38,177.37,0.03]
[1752933589825,66.0,177.38,177.37,0.03]
[1752933589996,66.0,177.38,177.37,21.09383948]
[1752933590196,66.0,177.38,177.37,47.09383948]
[1752933593519,66.0,177.38,177.37,43.50468397]
[1752933593718,66.0,177.38,177.37,47.09383948]
[1752933596513,66.0,177.38,177.37,46.40383948]
[1752933597122,66.0,177.38,177.37,47.09383948]
[1752933597299,66.0,177.38,177.37,21.09383948]
[1752933597500,66.0,177.38,177.37,17.50468397]
[1752933597700,66.0,177.38,177.37,21.09383948]
[1752933599110,66.0,177.38,177.37,30.32092699]
[1752933599726,66.0,177.38,177.37,64.16092699]
[1752933599911,0.06,177.39,177.38,16.78468397]
[1752933600111,0.06,177.39,177.38,101.2935564]
[1752933600313,0.06,177.4,177.38,73.9731564]
[1752933600618,0.06,177.4,177.39,24.65299499]
[1752933601413,0.2,177.42,177.41,16.78468397]
[1752933601612,0.2,177.42,177.41,61.55750556]
[1752933601817,0.2,177.42,177.41,62.24750556]
[1752933602410,0.2,177.42,177.41,67.8841664]
[1752933603313,0.2,177.42,177.41,62.24750556]
[1752933604453,0.2,177.42,177.41,67.8841664]
[1752933605138,0.2,177.42,177.41,18.03835005]
[1752933605312,0.2,177.42,177.41,62.24750556]
[1752933605717,0.2,177.42,177.41,61.55750556]
[1752933606020,0.2,177.42,177.41,83.96835005]
[1752933606330,0.2,177.42,177.41,87.55750556]
[1752933606631,0.9,177.42,177.41,83.40468397]
[1752933606830,0.9,177.42,177.4,3.58915551]
[1752933607041,0.7,177.41,177.4,60.99383948]
[1752933607231,0.7,177.41,177.4,57.40468397]
[1752933608548,0.7,177.41,177.4,60.99383948]
[1752933608854,0.7,177.41,177.4,20.37383948]
[1752933610031,0.7,177.41,177.4,16.78468397]
[1752933610230,0.7,177.41,177.4,20.37383948]
[1752933610950,0.2,177.42,177.4,20.37383948]
[1752933611145,0.2,177.42,177.41,62.20750556]
[1752933612648,0.2,177.42,177.41,69.30750556]
[1752933613221,0.06,177.43,177.42,50.62468397]
[1752933613426,0.06,177.46,177.45,52.28298397]
[1752933613632,0.06,177.51,177.45,100.56483401]
[1752933613843,0.06,177.51,177.49,20.37383948]
[1752933614018,0.06,177.51,177.49,61.4772515]
[1752933614313,0.06,177.51,177.49,102.2457515]
[1752933614517,0.06,177.53,177.52,16.78468397]
[1752933614717,0.06,177.53,177.52,64.24735777]
[1752933614918,0.06,177.53,177.52,64.93735777]
[1752933615119,0.06,177.53,177.52,98.77735777]
[1752933615342,0.2,177.56,177.55,16.78468397]
[1752933615552,16.909506,177.63,177.62,26.0]
[1752933615750,16.909506,177.63,177.62,46.37383948]
[1752933616136,16.909506,177.63,177.62,47.06383948]
[1752933616659,16.909506,177.63,177.62,46.37383948]
[1752933616830,16.909506,177.63,177.62,86.87383948]
[1752933617033,16.909506,177.63,177.62,87.56383948]
[1752933617282,16.909506,177.63,177.62,121.40383948]
[1752933617441,16.189506,177.63,177.62,121.40383948]
[1752933617634,16.189506,177.63,177.62,47.06383948]
[1752933617951,16.189506,177.63,177.62,87.55383948]
[1752933618149,6.32619556,177.74,177.66,26.0]
[1752933618463,6.32619556,177.74,177.72,16.78468397]
[1752933618663,0.7,177.73,177.72,16.78468397]
[1752933618869,6.32651212,177.73,177.72,20.37383948]
[1752933619167,5.6246133,177.79,177.76,16.78468397]
[1752933619468,19.6809053,177.84,177.79,26.0]
[1752933619639,3.58915551,177.81,177.78,66.46]
[1752933619838,3.58915551,177.79,177.74,40.46]
[1752933620151,3.58915551,177.79,177.7,6.5759]
[1752933620152,3.58915551,177.75,177.71,16.78468397]
[1752933620358,26.0,177.79,177.7,16.78468397]
[1752933620359,3.58915551,177.73,177.7,16.78468397]
[1752933620562,5.62714534,177.71,177.69,40.46]
[1752933620764,6.32714534,177.71,177.69,40.46]
[1752933621648,0.7,177.7,177.69,16.78468397]
[1752933621845,5.62714534,177.71,177.69,16.78468397]
[1752933622156,6.32714534,177.71,177.69,16.78468397]
[1752933622357,6.32714534,177.71,177.67,40.44]
[1752933622358,0.7,177.7,177.67,40.44]
[1752933622551,0.7,177.7,177.67,40.42]
[1752933622552,5.62777871,177.69,177.67,40.42]
[1752933622754,11.47716911,177.69,177.67,40.42]
[1752933623058,5.62777871,177.69,177.67,40.42]
[1752933623268,5.8493904,177.71,177.68,16.78468397]
[1752933623569,6.5293904,177.71,177.68,16.78468397]
[1752933623759,5.8493904,177.7,177.68,16.78468397]
[1752933624670,5.62777871,177.69,177.68,16.78468397]
[1752933626367,11.47716911,177.69,177.68,16.78468397]
[1752933626576,5.8493904,177.69,177.68,16.78468397]
[1752933627776,5.62746201,177.7,177.68,16.78468397]
[1752933627948,11.47685241,177.7,177.68,16.78468397]
[1752933629278,5.8493904,177.69,177.68,16.78468397]
[1752933630085,12.15685241,177.7,177.68,16.78468397]
[1752933630267,5.8493904,177.69,177.67,40.42]
[1752933630479,6.5293904,177.68,177.67,57.20468397]
[1752933630850,5.8493904,177.68,177.67,57.20468397]
[1752933631171,6.30746201,177.7,177.67,57.20468397]
[1752933631483,11.47748585,177.68,177.67,57.20468397]
[1752933631656,5.62809545,177.68,177.67,57.20468397]
[1752933631979,11.47748585,177.68,177.67,57.20468397]
[1752933633054,0.68,177.74,177.68,16.78468397]
[1752933633255,5.8493904,177.73,177.7,16.78468397]
[1752933633474,5.8493904,177.71,177.7,16.78468397]
[1752933633977,0.68,177.71,177.7,16.78468397]
[1752933634184,0.68,177.73,177.7,16.78468397]
[1752933635061,5.62682871,177.72,177.7,16.78468397]
[1752933635262,0.68,177.71,177.7,16.78468397]
[1752933636078,6.5293904,177.71,177.69,66.3]
[1752933636279,6.5293904,177.7,177.69,26.0]
[1752933636779,0.68,177.7,177.69,26.0]
[1752933636992,5.8493904,177.71,177.69,26.0]
[1752933637179,5.62732412,177.71,177.69,66.24]
[1752933637370,11.47671452,177.71,177.69,66.24]
[1752933639283,12.15671452,177.71,177.69,66.24]
[1752933640266,11.53631796,177.72,177.69,66.24]
[1752933640464,11.53631796,177.72,177.7,16.78468397]
[1752933641073,0.06,177.72,177.71,62.83407437]
[1752933641374,0.06,177.72,177.71,64.0667889]
[1752933641568,0.06,177.72,177.71,65.3173985]
[1752933642168,0.06,177.72,177.71,71.1667889]
[1752933643283,0.06,177.72,177.71,105.0067889]
[1752933645170,0.06,177.72,177.71,58.9573985]
[1752933645368,0.06,177.72,177.71,104.9867889]
[1752933645788,0.06,177.72,177.71,99.1373985]
[1752933645993,0.06,177.72,177.71,104.9867889]
[1752933647097,0.06,177.72,177.71,102.72457409]
[1752933647294,0.06,177.72,177.71,95.62457409]
[1752933649372,0.06,177.72,177.71,94.95457409]
[1752933649695,0.06,177.72,177.71,95.62457409]
[1752933650277,0.06,177.72,177.71,95.54457409]
[1752933652392,0.06,177.72,177.71,51.8573985]
[1752933652780,0.06,177.72,177.71,91.9173985]
[1752933653687,0.06,177.72,177.71,51.8573985]
[1752933654072,0.06,177.72,177.71,91.9173985]
[1752933654269,0.06,177.72,177.71,91.8973985]
[1752933654483,0.06,177.72,177.71,51.8573985]
[1752933654795,0.06,177.72,177.71,51.1873985]
[1752933654999,3.64717559,177.72,177.71,91.2273985]
[1752933657379,0.06,177.72,177.71,91.9073985]
[1752933657700,0.06,177.72,177.71,95.49457409]
[1752933657876,0.06,177.72,177.71,100.07676602]
[1752933658079,0.06,177.72,177.71,110.03676602]
[1752933658278,0.06,177.72,177.71,105.66176602]
[1752933658492,0.06,177.72,177.71,115.66176602]
[1752933658685,0.06,177.72,177.71,70.03676602]
[1752933658896,0.06,177.72,177.71,65.66176602]
[1752933659214,0.06,177.72,177.71,105.66176602]
[1752933659406,0.06,177.72,177.71,65.66176602]
[1752933659781,0.06,177.78,177.77,50.62468397]
[1752933660107,3.64717559,177.78,177.77,91.16720858]
[1752933660409,13.50928086,177.78,177.77,33.84]
[1752933660574,15.15938086,177.78,177.67,0.56284122]
[1752933660784,3.58717559,177.75,177.68,30.0]
[1752933661105,3.58717559,177.69,177.68,69.98]
[1752933661307,3.58717559,177.69,177.68,30.0]
[1752933661498,13.45212989,177.69,177.63,0.59296796]
[1752933661701,3.58717559,177.64,177.63,0.03]
[1752933661895,3.58717559,177.64,177.62,0.03]
[1752933662084,4.23717559,177.63,177.58,39.98]
[1752933662292,3.58717559,177.59,177.58,39.98]
[1752933662606,4.23717559,177.59,177.58,65.98]
[1752933662998,6.50834129,177.59,177.58,56.76468397]
[1752933663203,6.50834129,177.59,177.55,0.03]
[1752933663399,6.50834129,177.59,177.56,45.625]
[1752933663599,6.50834129,177.59,177.58,16.78468397]
[1752933663908,6.50834129,177.59,177.58,82.76468397]
[1752933663909,5.85834129,177.59,177.58,82.76468397]
[1752933664088,0.65,177.65,177.62,16.78468397]
[1752933664287,5.85834129,177.63,177.62,56.78468397]
[1752933664710,6.50834129,177.63,177.62,56.78468397]
[1752933666400,0.65,177.67,177.65,26.0]
[1752933666590,5.85834129,177.66,177.65,82.76468397]
[1752933666991,6.50834129,177.66,177.65,82.76468397]
[1752933670024,20.12063572,177.74,177.65,82.76468397]
[1752933670307,5.85834129,177.71,177.69,16.78468397]
[1752933670622,5.62651212,177.73,177.7,56.72468397]
[1752933670909,5.85834129,177.71,177.69,39.94]
[1752933671088,5.85834129,177.7,177.69,26.0]
[1752933671288,6.50834129,177.7,177.69,26.0]
[1752933671702,6.50834129,177.7,177.68,39.94]
[1752933672019,6.50834129,177.69,177.66,26.0]
[1752933672233,14.06628031,177.73,177.67,39.94]
[1752933672406,0.65,177.68,177.67,39.94]
[1752933672914,0.65,177.68,177.66,65.92]
[1752933673221,0.65,177.67,177.66,82.70468397]
[1752933673547,6.50834129,177.67,177.66,82.70468397]
[1752933673818,5.85834129,177.68,177.67,16.78468397]
[1752933676517,12.13643674,177.68,177.67,16.78468397]
[1752933677420,12.13643674,177.68,177.62,7.1]
[1752933677600,5.85834129,177.63,177.57,34.47]
[1752933677919,5.85834129,177.59,177.58,56.66468397]
[1752933678102,5.85834129,177.6,177.58,56.66468397]
[1752933679006,5.85834129,177.6,177.59,65.88]
[1752933679617,5.85834129,177.6,177.59,26.0]
[1752933679820,5.85834129,177.6,177.59,65.88]
[1752933680520,6.50834129,177.6,177.59,42.78468397]
[1752933680828,12.13897192,177.6,177.59,82.64468397]
[1752933682595,6.50834129,177.6,177.59,82.64468397]
[1752933683139,5.85834129,177.6,177.59,82.64468397]
[1752933683305,5.85834129,177.6,177.59,42.78468397]
[1752933683503,5.85834129,177.6,177.59,82.64468397]
[1752933683910,5.63041516,177.61,177.59,82.64468397]
[1752933684425,5.85834129,177.6,177.59,82.64468397]
[1752933686243,12.19897192,177.6,177.59,65.86]
[1752933687542,5.85834129,177.61,177.6,16.78468397]
[1752933687835,5.85834129,177.61,177.6,56.62468397]
[1752933688400,6.56834129,177.61,177.6,56.62468397]
[1752933688635,5.85834129,177.61,177.6,56.62468397]
[1752933689642,0.71,177.65,177.63,26.0]
[1752933689806,5.85834129,177.64,177.63,65.84]
[1752933690003,6.56834129,177.64,177.63,26.0]
[1752933690209,6.56834129,177.64,177.63,65.9]
[1752933690720,6.56834129,177.64,177.63,26.0]
[1752933690946,6.56834129,177.64,177.63,65.88]
[1752933691238,5.85834129,177.64,177.63,65.88]
[1752933691616,5.85834129,177.64,177.63,82.66468397]
[1752933691826,5.85834129,177.67,177.64,16.78468397]
[1752933692129,5.91834129,177.68,177.66,42.78468397]
[1752933692341,5.91834129,177.68,177.67,39.86]
[1752933692921,11.54643674,177.68,177.67,39.86]
[1752933693229,12.25643674,177.68,177.67,39.86]
[1752933695050,12.25643674,177.68,177.66,42.78468397]
[1752933695051,12.25643674,177.68,177.66,65.88]
[1752933695254,6.56834129,177.67,177.66,65.88]
[1752933696030,12.19675351,177.67,177.66,65.88]
[1752933698735,12.19675351,177.67,177.65,39.82]
[1752933698938,4.30237271,177.66,177.65,39.82]
[1752933699330,4.30237271,177.66,177.64,39.82]
[1752933699652,4.30237271,177.65,177.64,26.0]
[1752933700548,9.93141858,177.65,177.64,26.0]
[1752933700931,5.62872844,177.67,177.64,26.0]
[1752933701257,6.33872844,177.67,177.65,39.82]
[1752933701766,0.71,177.66,177.65,39.82]
[1752933701931,0.71,177.66,177.65,56.60468397]
[1752933702132,0.71,177.66,177.64,65.8]
[1752933702351,3.59237271,177.65,177.64,82.58468397]
[1752933702727,9.93141858,177.65,177.64,82.58468397]
[1752933702926,9.93141858,177.65,177.64,65.8]
[1752933703126,9.93141858,177.65,177.64,26.0]
[1752933704446,9.93141858,177.65,177.62,72.9]
[1752933704651,3.59237271,177.63,177.62,82.58468397]
[1752933704831,9.22205238,177.63,177.62,82.58468397]
[1752933705033,9.93205238,177.63,177.62,42.78468397]
[1752933705950,4.30237271,177.63,177.62,42.78468397]
[1752933706246,3.59237271,177.64,177.63,16.78468397]
[1752933706451,3.59237271,177.64,177.63,56.56468397]
[1752933707044,6.33847055,177.67,177.63,56.56468397]
[1752933707352,3.59237271,177.64,177.63,56.56468397]
[1752933707931,4.30237271,177.64,177.63,56.56468397]
[1752933708630,4.30237271,177.64,177.63,16.78468397]
[1752933709071,0.71,177.64,177.62,65.76]
[1752933709361,9.93205238,177.63,177.62,82.54468397]
[1752933709532,9.93205238,177.63,177.62,42.78468397]
[1752933709730,9.93205238,177.63,177.6,46.86]
[1752933709949,9.93205238,177.63,177.6,56.54468397]
[1752933709950,3.59237271,177.61,177.6,56.54468397]
[1752933710132,4.30237271,177.61,177.6,56.54468397]
[1752933710742,4.30237271,177.61,177.59,26.0]
[1752933711090,19.70387884,177.63,177.6,26.0]
[1752933711243,14.07419917,177.63,177.6,26.0]
[1752933711629,0.71,177.62,177.6,26.0]
[1752933712242,3.59237271,177.61,177.6,26.0]
[1752933712564,4.30237271,177.61,177.6,26.0]
[1752933713133,9.93268631,177.61,177.6,26.0]
[1752933714649,9.93268631,177.61,177.59,65.76]
[1752933714868,3.59237271,177.6,177.59,82.54468397]
[1752933715079,4.29237271,177.6,177.59,82.54468397]
[1752933715866,9.92300334,177.6,177.59,82.54468397]
[1752933716163,9.92300334,177.6,177.59,42.78468397]
[1752933716848,5.62999662,177.62,177.59,42.78468397]
[1752933717049,3.59237271,177.6,177.59,42.78468397]
[1752933717242,3.59237271,177.61,177.6,16.78468397]
[1752933717747,4.29237271,177.61,177.6,16.78468397]
[1752933718066,9.92268631,177.61,177.6,16.78468397]
[1752933718272,9.92268631,177.61,177.59,65.74]
[1752933718467,3.59237271,177.6,177.59,82.52468397]
[1752933719440,4.29237271,177.6,177.59,82.52468397]
[1752933719942,9.92300334,177.6,177.58,0.03]
[1752933720142,4.29237271,177.59,177.58,39.77]
[1752933720355,4.29237271,177.59,177.58,0.03]
[1752933720564,3.59237271,177.59,177.58,0.03]
[1752933721461,4.29237271,177.59,177.58,39.77]
[1752933721649,4.29237271,177.59,177.58,0.03]
[1752933722161,5.62936275,177.64,177.59,42.78468397]
[1752933722464,3.59237271,177.65,177.64,26.0]
[1752933722667,3.59237271,177.65,177.64,82.56468397]
[1752933723261,4.29237271,177.65,177.64,39.78]
[1752933723472,4.29237271,177.65,177.62,65.78]
[1752933723633,3.59237271,177.63,177.61,46.88]
[1752933723834,0.7,177.66,177.61,23.88468397]
[1752933724162,5.62927178,177.65,177.62,57.23468397]
[1752933724371,5.62841222,177.67,177.64,16.78468397]
[1752933724554,9.28058017,177.68,177.66,16.78468397]
[1752933724742,3.59237271,177.67,177.66,56.58468397]
[1752933725065,3.65237271,177.68,177.66,56.58468397]
[1752933725276,9.28048972,177.68,177.66,56.58468397]
[1752933725569,0.06,177.68,177.66,56.58468397]
[1752933725878,9.28051451,177.68,177.66,56.58468397]
[1752933727347,3.59237271,177.67,177.66,56.58468397]
[1752933727552,3.65237271,177.68,177.66,56.58468397]
[1752933727767,0.06,177.68,177.66,57.25468397]
[1752933727939,3.65237271,177.68,177.66,57.25468397]
[1752933728140,3.65237271,177.68,177.66,56.58468397]
[1752933728355,0.06,177.68,177.66,56.58468397]
[1752933728563,0.06,177.68,177.66,57.25468397]
[1752933728969,0.06,177.68,177.67,17.45468397]
[1752933729269,3.65237271,177.68,177.67,16.78468397]
[1752933730658,4.35237271,177.68,177.67,56.54468397]
[1752933731063,9.98046816,177.68,177.67,56.54468397]
[1752933732785,9.98046816,177.68,177.67,16.78468397]
[1752933733158,9.28046816,177.68,177.67,16.78468397]
[1752933735681,0.06,177.68,177.67,16.78468397]
[1752933735888,3.65237271,177.68,177.67,16.78468397]
[1752933736966,4.35237271,177.68,177.66,39.76]
[1752933737206,4.29237271,177.67,177.66,56.54468397]
[1752933737408,4.29237271,177.67,177.63,16.78468397]
[1752933737601,3.59237271,177.64,177.63,56.50468397]
[1752933737793,9.92173546,177.64,177.63,56.50468397]
[1752933737982,9.22173546,177.64,177.63,56.50468397]
[1752933738692,3.59237271,177.64,177.63,56.50468397]
[1752933739711,3.59237271,177.64,177.63,16.78468397]
[1752933740003,9.22173546,177.64,177.63,56.50468397]
[1752933740310,9.92173546,177.64,177.63,56.50468397]
[1752933740499,9.92173546,177.64,177.62,33.1]
[1752933740698,4.29237271,177.63,177.62,7.1]
[1752933740899,4.29237271,177.63,177.59,16.78468397]
[1752933741143,3.59237271,177.6,177.59,82.50468397]
[1752933741509,4.29237271,177.6,177.59,82.50468397]
[1752933741702,3.59237271,177.6,177.59,82.50468397]
[1752933742981,9.91300334,177.6,177.59,65.72]
[1752933743181,9.91300334,177.6,177.58,0.03]
[1752933743414,9.91300334,177.6,177.58,56.53468397]
[1752933743415,3.59237271,177.59,177.58,56.53468397]
[1752933743708,6.32063063,177.6,177.58,16.81468397]
[1752933744021,3.59237271,177.59,177.58,16.81468397]
[1752933746016,3.59237271,177.61,177.59,16.78468397]
[1752933746218,3.59237271,177.61,177.59,56.52468397]
[1752933746516,3.59237271,177.61,177.59,57.23468397]
[1752933746716,3.59237271,177.6,177.59,56.52468397]
[1752933747019,3.59237271,177.6,177.59,16.78468397]
[1752933747391,4.28237271,177.6,177.58,39.77]
[1752933747607,4.28237271,177.59,177.58,56.55468397]
[1752933748111,9.91332039,177.59,177.58,16.81468397]
[1752933748824,9.91332039,177.59,177.58,0.03]
[1752933752943,23.99068961,177.59,177.55,0.03]
[1752933753145,3.59237271,177.56,177.55,0.03]
[1752933753628,4.28237271,177.56,177.55,0.03]
[1752933754912,9.91427178,177.56,177.55,0.03]
[1752933755114,6.32189907,177.56,177.55,0.03]
[1752933755308,9.91427178,177.56,177.55,0.03]
[1752933756418,9.22427178,177.56,177.55,0.03]
[1752933757826,9.91427178,177.56,177.55,0.03]
[1752933758228,6.32189907,177.56,177.55,0.03]
[1752933758414,9.91427178,177.56,177.55,0.03]
[1752933759234,9.22427178,177.56,177.55,0.03]
[1752933759730,9.22371695,177.58,177.55,0.03]
[1752933759900,9.22371695,177.58,177.55,0.74]
[1752933760105,3.59237271,177.57,177.55,0.03]
[1752933760306,9.2240849,177.57,177.55,0.03]
[1752933760525,4.28237271,177.56,177.55,26.03]
[1752933760910,3.59237271,177.56,177.55,26.03]
[1752933761536,4.28237271,177.56,177.55,26.03]
[1752933761920,4.28237271,177.56,177.55,0.03]
[1752933762503,9.91427178,177.56,177.55,0.03]
[1752933763211,9.91427178,177.56,177.55,1e-08]
[1752933763422,23.99401947,177.56,177.51,0.03]
[1752933763737,3.59237271,177.52,177.51,0.03]
[1752933764114,4.28237271,177.52,177.51,0.03]
[1752933765040,9.9155408,177.52,177.51,0.03]
[1752933770036,6.32316809,177.52,177.51,0.03]
[1752933770241,9.22528861,177.53,177.51,0.03]
[1752933770742,3.59237271,177.52,177.51,0.03]
[1752933771234,5.6329159,177.53,177.51,0.03]
[1752933771543,3.59237271,177.57,177.53,16.78468397]
[1752933771724,9.22363749,177.58,177.54,0.71]
[1752933772318,6.32126478,177.58,177.53,16.78468397]
[1752933772631,3.59237271,177.57,177.53,17.49468397]
[1752933772829,5.63189907,177.56,177.53,17.49468397]
[1752933773034,9.22427178,177.56,177.53,17.49468397]
[1752933773249,9.22427178,177.56,177.53,16.78468397]
[1752933773946,9.22427178,177.56,177.53,17.47468397]
[1752933774146,3.59237271,177.56,177.53,17.47468397]
[1752933774443,9.22406885,177.57,177.54,0.69]
[1752933774643,0.06,177.59,177.56,26.0]
[1752933774951,0.06,177.59,177.57,21.06705668]
[1752933775168,0.06,177.59,177.58,20.94018315]
[1752933775328,0.06,177.59,177.58,21.63018315]
[1752933777732,0.06,177.59,177.58,61.37018315]
[1752933779772,0.06,177.59,177.58,68.47018315]
[1752933780162,0.06,177.59,177.58,89.62468397]
[1752933781247,0.06,177.59,177.58,68.47018315]
[1752933781461,0.06,177.59,177.58,76.69468315]
[1752933782033,0.06,177.59,177.58,82.32594793]
[1752933782238,0.06,177.63,177.62,42.78468397]
[1752933782479,0.06,177.63,177.62,93.78005634]
[1752933782846,0.06,177.63,177.62,94.46005634]
[1752933784251,0.06,177.63,177.62,90.18768363]
[1752933784462,0.06,177.63,177.62,89.62468397]
[1752933785344,0.06,177.63,177.62,7.1]
[1752933785566,4.33237271,177.63,177.62,39.72]
[1752933786559,4.33237271,177.63,177.6,39.72]
[1752933786763,3.59237271,177.62,177.6,65.72]
[1752933788773,0.06,177.63,177.61,0.68]
[1752933788970,0.06,177.63,177.62,39.72]
[1752933791174,3.65237271,177.63,177.62,39.72]
[1752933791570,4.33237271,177.63,177.62,39.72]
[1752933791767,4.33237271,177.63,177.61,39.72]
[1752933791975,9.90236933,177.62,177.6,26.0]
[1752933792149,3.59237271,177.61,177.6,65.72]
[1752933792574,9.90236933,177.62,177.6,65.72]
[1752933793152,9.22236933,177.62,177.6,65.72]
[1752933793878,9.90236933,177.62,177.6,65.72]
[1752933795664,9.22236933,177.62,177.6,65.72]
[1752933795986,5.62999662,177.62,177.6,65.72]
[1752933796173,9.22236933,177.62,177.6,65.72]
[1752933796885,9.22236933,177.62,177.6,66.4]
[1752933797087,0.06,177.63,177.61,55.37008804]
[1752933797385,0.06,177.63,177.62,56.50468397]
[1752933797599,9.96205238,177.63,177.62,39.72]
[1752933797765,9.28205238,177.63,177.62,39.72]
[1752933797969,5.68967967,177.63,177.62,39.72]
[1752933800189,0.06,177.63,177.62,39.72]